Cogmind - Beta 15 @@@ ROGUE MODE // 2025.08.05 @ 18:05:34 Player: Leperion Result: Self-destructed Performance ------------- Evolutions (2) 1000 Regions Visited (5) 1000 Robots Destroyed (34) 170 Value Destroyed (593) 593 Prototype IDs (23) 460 Alien Tech Used (0) 0 Bonus (307) 307 TOTAL SCORE: 3530 Bonus ------- Follower Combat Kills 7 Aligned with FarCom 300 Cogmind --------- Core Integrity 391/550 Matter 298/300 Energy 100/100 System Corruption 3% Temperature Cool (0) Movement Walking (120) Location -8/Materials Parts ------- > --- POWER (1) -------- (None) > --- PROPULSION (4) --- Improved Aluminum Leg VSS Leg VSS Leg > --- UTILITY (4) ------ Improved Heat Sink Signal Interpreter Terrain Scan Processor Trap Extractor (0/4) > --- WEAPON (2) ------- Rocket Launcher > --- INVENTORY (5) ---- Airjet Light Assault Rifle Mining Laser Peak State ------------ > --- POWER ------------ Light Ion Engine > --- PROPULSION ------- Improved Aluminum Leg Improved Aluminum Leg Improved Aluminum Leg > --- UTILITY ---------- Improved Heat Sink Signal Interpreter Trap Extractor > --- WEAPON ----------- Field Lobotomy Kit Makeshift Hammer > --- INVENTORY -------- Improved Ion Engine Light Assault Rifle Mining Laser [Rating: 27] Favorites ----------- Power Light Ion Engine Engine Light Ion Engine Propulsion Wheel Leg Improved Aluminum Leg Wheel Wheel Utility Signal Interpreter Device Heat Sink Storage Large Storage Unit Processor Signal Interpreter Weapon Light Assault Rifle Ballistic Gun Light Assault Rifle Launcher Grenade Launcher Special Weapon Field Lobotomy Kit Impact Weapon Makeshift Hammer Build | -11 -10 -10 -10 -9 -8 ------- Run | Yrd Mat Min Exi Min Mat Slots Evolved 4 | . . . . . 4 Power . | . . . . . . Propulsion 2 | . . . . . 2 Utility 2 | . . . . . 2 Weapon . | . . . . . . Parts Attached 30 | 6 8 . . 6 10 Power 4 | 1 2 . . . 1 Engine 4 | 1 2 . . . 1 Core . | . . . . . . Reactor . | . . . . . . Propulsion 11 | 2 2 . . 2 5 Treads . | . . . . . . Leg 7 | 2 . . . . 5 Wheel 4 | . 2 . . 2 . Hover . | . . . . . . Flight . | . . . . . . Utility 8 | 1 2 . . 2 3 Device 4 | . 1 . . 1 2 Storage 2 | 1 1 . . . . Processor 2 | . . . . 1 1 Hackware . | . . . . . . Protection . | . . . . . . Artifact . | . . . . . . Weapon 7 | 2 2 . . 2 1 Energy Gun . | . . . . . . Energy Cannon . | . . . . . . Ballistic Gun 2 | 2 . . . . . Ballistic Cannon . | . . . . . . Launcher 3 | . 2 . . . 1 Special Weapon 1 | . . . . 1 . Impact Weapon 1 | . . . . 1 . Slashing Weapon . | . . . . . . Piercing Weapon . | . . . . . . Special Melee Weapon . | . . . . . . Unidentified Prototypes . | . . . . . . Parts Lost 8 | . 3 . . 1 4 Power 3 | . 1 . . . 2 Propulsion 3 | . 2 . . . 1 Utility . | . . . . . . Weapon 2 | . . . . 1 1 Highest Loss Streak 2 | . 2 . . 1 2 To Critical Strikes . | . . . . . . Average Backups 3 | 1 3 5 5 4 3 Power . | . . 1 1 . . Propulsion . | . . 1 1 . . Utility . | . . 1 1 . . Weapon 1 | . 1 1 1 1 2 Tool/Special . | . . . . . . Unused Backups 7 | 1 2 . 1 . 3 Power . | . . . . . . Propulsion 2 | 1 . . . . 1 Utility 1 | . 1 . . . . Weapon 3 | . 1 . . . 2 Tool/Special 1 | . . . 1 . . Average Slot Usage (%) 75 | . 84 . . 93 83 Engine 10 | . 12 . . 13 7 Leg 10 | . 15 . . . 28 Wheel 11 | . 6 . . 27 1 Device 9 | . 4 . . 12 18 Storage 6 | . 19 . . . . Processor 6 | . . . . 12 12 Ballistic Gun 6 | . 18 . . . . Launcher 5 | . 5 . . 9 3 Special Weapon 4 | . . . . 12 4 Impact Weapon 2 | . . . . 2 8 Peak Build Rating 27 | 6 7 . 1 19 27 Average Rating 11 | 4 5 . . 16 24 On Entrance 4 | . 6 . . 1 19 Naked Turns 446 | . 15 115 303 13 . Heaviest Build 34 | 10 34 . . 15 17 Greatest Support 50 | 20 20 3 3 20 50 Greatest Overweight (x) 6 | . 6 . . 1 1 Average Overweight (x) . | . 1 . . . . Largest Inventory Capacity 15 | 8 15 5 5 5 5 Average Capacity 7 | 6 13 5 5 5 5 Most Carried 11 | 3 11 5 5 5 4 Average Carried 3 | . 3 5 4 4 3 Final Capacity 8 | 8 5 5 5 5 5 Final Carried 5 | 1 5 5 5 4 3 Class Distribution -------------------- 61% | Mutant 30% | Scavenger-Mutant 7% | Derelict-Mutant Dominant Class ---------------- Mutant | -10/Materials Mutant | -10/Mines Mutant | -10/Exiles Scavenger-Mutant | -9/Mines Mutant | -8/Materials Resources | -11 -10 -10 -10 -9 -8 ----------- Run | Yrd Mat Min Exi Min Mat Matter Collected 840 | 185 96 . . 303 256 Remotely . | . . . . . . Salvage Created 827 | . 211 . . 144 472 Parts 37 | . 16 . . 11 10 Haulers Intercepted . | . . . . . . Recyclers Shooed 1 | . 1 . . . . Parts Field Recycled . | . . . . . . Retrieved Matter . | . . . . . . Parts Self-Destructed . | . . . . . . Prevented . | . . . . . . Kills | -11 -10 -10 -10 -9 -8 ------- Run | Yrd Mat Min Exi Min Mat Combat Hostiles Destroyed 20 | . 9 . . 7 4 Melee 4 | . . . . 1 3 Guns 1 | . 1 . . . . AOE 11 | . 8 . . 3 . Classes Destroyed 8 | . 5 . . 1 2 Worker 3 | . 2 . . . 1 Builder 4 | . 1 . . 3 . Tunneler 2 | . . . . 2 . Recycler 3 | . . . . . 3 Watcher 2 | . 1 . . . 1 Swarmer 12 | . 5 . . 7 . Grunt 4 | . 4 . . . . Specialist 4 | . . . . . 4 Best Kill Streak 4 | . 4 . . 3 4 Combat Bots Only 4 | . 4 . . 3 2 Max Kills in Single Turn 3 | . 3 . . 2 1 Gunslinging . | . . . . . . Exploded 3 | . 3 . . 2 . Melee 1 | . . . . 1 1 Uniques/NPCs Destroyed . | . . . . . . Combat | -11 -10 -10 -10 -9 -8 -------- Run | Yrd Mat Min Exi Min Mat Hostile Shots Fired 172 | . 61 . . 23 88 Missed 72 | . 24 . . 8 40 Hits 100 | . 37 . . 15 48 Projectile 100 | . 37 . . 15 48 Damage Taken 1323 | . 491 . . 222 610 Core 385 | . 170 . . 56 159 Absorbed by Shields . | . . . . . . Core Remaining (%) 54 | 100 . . . 9 . Volleys Fired 38 | . 25 . . 8 5 Largest 2 | . 2 . . 1 1 Hottest 50 | . 50 . . 30 33 Shots Fired 56 | . 43 . . 8 5 Gun 33 | . 33 . . . . Cannon . | . . . . . . Launcher 21 | . 10 . . 6 5 Special 2 | . . . . 2 . Kinetic 33 | . 33 . . . . Thermal . | . . . . . . Explosive 21 | . 10 . . 6 5 Electromagnetic . | . . . . . . Robot Hit Streak 4 | . 4 . . 2 1 Robot Miss Streak 4 | . 4 . . 3 2 Penetration Max . | . . . . . . Secondary Targets . | . . . . . . Shots Hit Robots 49 | . 20 . . 11 18 Core Hits 39 | . 24 . . 11 4 Critical Kills . | . . . . . . Critical Parts Destroyed 6 | . . . . 3 3 Critical Strikes 6 | . . . . 3 3 Smash 6 | . . . . 3 3 Melee Attacks 39 | . . . . 11 28 Impact 39 | . . . . 11 28 Slashing . | . . . . . . Piercing . | . . . . . . Sneak Attacks 7 | . . . . 2 5 Combat Hostiles . | . . . . . . Follow-up Attacks . | . . . . . . Damage Inflicted 2736 | . 878 . . 697 1161 Guns 143 | . 143 . . . . Cannons . | . . . . . . Explosions 1054 | . 735 . . 202 117 Melee 1484 | . . . . 440 1044 Ramming 55 | . . . . 55 . Kinetic 143 | . 143 . . . . Thermal . | . . . . . . Explosive 1054 | . 735 . . 202 117 Electromagnetic . | . . . . . . Impact 1484 | . . . . 440 1044 Slashing . | . . . . . . Piercing . | . . . . . . Highest Corruption 3 | . . . . . 3 Average Corruption 2 | . . . . . 2 Corruption Purged . | . . . . . . Corruption Blocked . | . . . . . . Effects 9 | . . . . . 9 Message Errors 2 | . . . . . 2 Matter Fused 3 | . . . . . 3 Parts Rejected 2 | . . . . . 2 Data Loss (minor) 2 | . . . . . 2 Overload Shots . | . . . . . . Overflow Damage 790 | . 8 . . 337 445 Projectiles . | . . . . . . Explosions 15 | . 8 . . 7 . Melee 775 | . . . . 330 445 Knockbacks 5 | . . . . . 5 Impact 5 | . . . . . 5 Kinetic . | . . . . . . Secondary . | . . . . . . Self-Inflicted Damage 210 | . 77 . . 102 31 Shots 7 | . 3 . . 3 1 Rammed 15 | . . . . 15 . Targets Rammed 15 | . . . . 15 . Kicked . | . . . . . . Crushed . | . . . . . . Highest Temperature 12 | . 12 . . . . Average Temperature 7 | . 7 . . . . Received Heat Transfer 153 | . 153 . . . . Siege Activations . | . . . . . . Martial Activations . | . . . . . . Shielding Activations . | . . . . . . Robots Disrupted . | . . . . . . Combat Hostiles . | . . . . . . Robots Corrupted 7 | . . . . 3 4 Combat Hostiles 4 | . . . . 3 1 Parts Fried 16 | . . . . 8 8 Impact Corruptions 25 | . . . . 14 11 Robots Melted . | . . . . . . Combat Hostiles . | . . . . . . Parts Melted . | . . . . . . Heat Transferred . | . . . . . . Parts Sabotaged . | . . . . . . Parts Stolen . | . . . . . . Parts Stripped . | . . . . . . Power Chain Reactions . | . . . . . . Alert | -11 -10 -10 -10 -9 -8 ------- Run | Yrd Mat Min Exi Min Mat Maximum Alert Level . | . . . . . . Low Security (%) 100 | 100 100 100 . 100 100 Level 1 . | . . . . . . Level 2 . | . . . . . . Level 3 . | . . . . . . Level 4 . | . . . . . . Level 5 . | . . . . . . High Security . | . . . . . . Max Security . | . . . . . . Peak Influence 127 | . 127 3 . 80 41 Initial 22 | . . 3 . . 22 Average 17 | . 28 . . 14 8 Influence Increases 686 | . 276 . . 264 146 Destroy 0b10 Robot/C 420 | . 180 . . 160 80 Destroy 0b10 Robot/NC 70 | . 20 . . 25 25 Destroy Leader 64 | . 22 . . 20 22 Allied During Kill 18 | . . . . 18 . Successful Hack 10 | . 10 . . . . Destroy Structure 104 | . 44 . . 41 19 Influence Decreases 666 | . 268 8 . 207 183 Entered New Map 40 | . . 5 . . 35 Time Decay 546 | . 244 3 . 181 118 Lost Part 60 | . 24 . . 6 30 Lost Ally 20 | . . . . 20 . Squads Dispatched 3 | . . . . . 3 Investigation . | . . . . . . Extermination . | . . . . . . Reinforcement 3 | . . . . . 3 Assault . | . . . . . . Garrison . | . . . . . . Intercept . | . . . . . . Searches Triggered . | . . . . . . Construction Impeded . | . . . . . . Haulers Reinforced . | . . . . . . Active Scanning Responses . | . . . . . . Cargo Convoy Interrupts . | . . . . . . Stealth | -11 -10 -10 -10 -9 -8 --------- Run | Yrd Mat Min Exi Min Mat Distress Signals 2 | . 1 . . . 1 Communications Jammed . | . . . . . . Distress Signals . | . . . . . . Times Spotted 35 | . 17 . . 10 8 Peak Tracking Total 6 | . 6 . . 4 3 Tactical Retreats . | . . . . . . Traps | -11 -10 -10 -10 -9 -8 ------- Run | Yrd Mat Min Exi Min Mat Traps Triggered 10 | . 8 . . . 2 Indirectly . | . . . . . . Trap Hack Attempts . | . . . . . . Triggered . | . . . . . . Disarmed . | . . . . . . Reprogrammed . | . . . . . . Reused . | . . . . . . Traps Extracted . | . . . . . . Installed . | . . . . . . Triggered . | . . . . . . Machines | -11 -10 -10 -10 -9 -8 ---------- Run | Yrd Mat Min Exi Min Mat Machines Disabled . | . . . . . . Max in Single Turn . | . . . . . . Machines Repaired . | . . . . . . Machines Dismantled . | . . . . . . Machines Sabotaged . | . . . . . . Overloaded Fab Kills . | . . . . . . Hacking | -11 -10 -10 -10 -9 -8 --------- Run | Yrd Mat Min Exi Min Mat Machines Accessed 8 | . 5 . 2 . 1 Terminals 5 | . 4 . . . 1 Fabricators . | . . . . . . Repair Stations . | . . . . . . Recycling Units 1 | . 1 . . . . Scanalyzers . | . . . . . . Garrison Access . | . . . . . . Total Hacks 22 | . 19 . 2 . 1 Successful 15 | . 13 . 2 . . Failed 7 | . 6 . . . 1 Catastrophic 1 | . 1 . . . . Database Lockouts . | . . . . . . Manual 2 | . . . 2 . . Terminals 14 | . 13 . . . 1 Fabricators . | . . . . . . Repair Stations . | . . . . . . Recycling Units 6 | . 6 . . . . Scanalyzers . | . . . . . . Garrison Access . | . . . . . . Terminal Hacks 11 | . 9 . 2 . . Record 5 | . 4 . 1 . . Emergency Access Points 1 | . 1 . . . . Alert Level 3 | . 3 . . . . Locate Traps 1 | . 1 . . . . Proto ID Catalog 1 | . . . 1 . . Fabricator Hacks . | . . . . . . Repair Station Hacks . | . . . . . . Recycling Unit Hacks 4 | . 4 . . . . Recycle Component 2 | . 2 . . . . Process 1 | . 1 . . . . Retrieve Matter 1 | . 1 . . . . Scanalyzer . | . . . . . . Garrison Access Hacks . | . . . . . . Unauthorized Hacks . | . . . . . . Terminals . | . . . . . . Fabricators . | . . . . . . Repair Stations . | . . . . . . Recycling Units . | . . . . . . Scanalyzers . | . . . . . . Garrison Access . | . . . . . . Data Cores Recovered . | . . . . . . Used . | . . . . . . Hacking Detections 5 | . 5 . . . . Full Trace Events 2 | . 2 . . . . Feedback Events . | . . . . . . Feedback Blocked . | . . . . . . Robot Schematics Acquired . | . . . . . . Robots Built . | . . . . . . Authchips . | . . . . . . Time . | . . . . . . Total Robot Build Rating . | . . . . . . Part Schematics Acquired . | . . . . . . Parts Built . | . . . . . . Authchips . | . . . . . . Time . | . . . . . . Total Part Build Rating . | . . . . . . Parts Repaired . | . . . . . . Time . | . . . . . . Parts Recycled 2 | . 2 . . . . Recycled Matter 112 | . 112 . . . . Retrieved Matter . | . . . . . . Retrieved Components . | . . . . . . Parts Scanalyzed . | . . . . . . Part Schematics Acquired . | . . . . . . Parts Damaged . | . . . . . . Bothacking | -11 -10 -10 -10 -9 -8 ------------ Run | Yrd Mat Min Exi Min Mat Used RIF Installer . | . . . . . . Robots Hacked . | . . . . . . Non-combat . | . . . . . . Combat . | . . . . . . Robot Hacks Applied . | . . . . . . Relay Couplers Released . | . . . . . . Fabnet Peak Effective % . | . . . . . . Robots Rewired . | . . . . . . Allies Hacked . | . . . . . . Hacks Repelled . | . . . . . . Allies | -11 -10 -10 -10 -9 -8 -------- Run | Yrd Mat Min Exi Min Mat Total Allies 6 | . . 2 . 4 . Largest Group 4 | . . 2 2 4 . Highest-Rated Group 45 | . . 39 39 45 . Highest-Rated Ally 31 | . . 31 31 16 . Total Orders . | . . . . . . Ally Attacks 8 | . . . . 8 . Total Damage 39 | . . . . 39 . Kills 1 | . . . . 1 . Allies Corrupted . | . . . . . . Allies Melted . | . . . . . . Field Lobotomies 1 | . . . . 1 . Intel | -11 -10 -10 -10 -9 -8 ------- Run | Yrd Mat Min Exi Min Mat Active Infowar (turns) 374 | . 374 . . . . Sensors 374 | . 374 . . . . Robot Analysis Total . | . . . . . . Derelict Logs Recovered 3 | . . 2 . 1 . Drone Launches . | . . . . . . Drone Recoveries . | . . . . . . Exploration | -11 -10 -10 -10 -9 -8 ------------- Run | Yrd Mat Min Exi Min Mat Turns Passed 3163 | 62 1073 115 303 983 627 Spaces Moved 2915 | 46 697 144 600 1102 326 Core 802 | 11 32 144 600 15 . Treads . | . . . . . . Legs 639 | 35 341 . . . 263 Wheels 1474 | . 324 . . 1087 63 Hover . | . . . . . . Flight . | . . . . . . Fastest Speed 50 | 50 50 50 50 50 80 Average Speed 87 | 103 129 50 50 79 110 Slowest Speed 350 | 120 350 50 50 95 190 Overloaded Moves . | . . . . . . Propulsion Burnouts . | . . . . . . Robots Hopped . | . . . . . . Potential Cave-ins . | . . . . . . Cave-ins Triggered . | . . . . . . Exploration Rate (%) 49 | 4 67 29 86 99 11 Regions Visited 5 Branch Regions 3 Pre-discovered Areas 3 | . . . 1 2 . Known Exits Taken 1 | . . . . 1 . Unknown Exits Taken 4 | 1 1 1 1 . . Scrap Searched 2 | . . . . 2 . Spaces Dug . | . . . . . . Terrain Destroyed 148 | . 62 . . 41 45 Melee . | . . . . . . Projectile . | . . . . . . AOE 148 | . 62 . . 41 45 Terrain Rammed . | . . . . . . Walls Destroyed . | . . . . . . Machines Disabled . | . . . . . . Actions | -11 -10 -10 -10 -9 -8 --------- Run | Yrd Mat Min Exi Min Mat Total 3423 | 61 827 186 602 1186 561 Wait 311 | 1 52 43 . 35 180 Move 2910 | 45 696 143 599 1101 326 Hop . | . . . . . . Pick Up 53 | 8 29 . 1 6 9 Fast Attach 2 | . . . . 2 . Attach 39 | 6 16 . . 7 10 Detach 1 | . 1 . . . . Swap 4 | . 4 . . . . Drop 10 | 1 4 . 1 1 3 Fire 38 | . 25 . . 8 5 Melee 39 | . . . . 11 28 Ram 15 | . . . . 15 . Kick . | . . . . . . Crush . | . . . . . . Escape Stasis . | . . . . . . Rewire 1 | . . . 1 . . Trap . | . . . . . . Miscellaneous . | . . . . . . Route ------- -11/Scrapyard -10/Materials (discovered 2 exits: [*Mat] / [*Min]) -10/Mines (discovered 3 exits: [*Mat x2] / *Exi) -10/Exiles (discovered 2 exits: [*Min x2]) -9/Mines (discovered 2 exits: *Mat x2) -8/Materials History --------- Turn | Location | Event 6 | -11/Scrapyard | Discovered new exit (range 15) 63 | -11/Scrapyard | Entered Materials 303 | -10/Materials | Build established: Mutant 543 | -10/Materials | Discovered new exit (range 3) 701 | -10/Materials | Core integrity fell below 50% 986 | -10/Materials | Discovered new exit (range 5) 1136 | -10/Materials | Entered Mines 1144 | -10/Mines | Learned Materials terminal intel 1163 | -10/Mines | Learned Materials emergency access door positions 1170 | -10/Mines | Discovered new exit (range 13) 1176 | -10/Mines | Discovered new exit (range 6) 1200 | -10/Mines | Deemed a non-threat by the Exiles lab entrance 1200 | -10/Mines | Discovered new exit (range 5) 1251 | -10/Mines | Entered Exiles 1251 | -10/Exiles | Accompanied by 2 allies 1261 | -10/Exiles | Discovered new exit (range 15) 1281 | -10/Exiles | Led the pair of lost Derelicts to a safe place 1283 | -10/Exiles | Met 8R-AWN 1295 | -10/Exiles | Met EX-HEX 1329 | -10/Exiles | Met EX-BIN 1337 | -10/Exiles | Aligned with FarCom system 1337 | -10/Exiles | Given EX-Vault access code 1350 | -10/Exiles | Opened EX-Vault 1362 | -10/Exiles | Found Field Lobotomy Kit 1373 | -10/Exiles | Warned to stay clear of 0b10 Research branches 1388 | -10/Exiles | Met EX-DEC 1490 | -10/Exiles | Visited The Gauntlet 1534 | -10/Exiles | Learned location of Zion (-7) 1548 | -10/Exiles | Discovered new exit (range 14) 1554 | -10/Exiles | Left Exiles lab with Field Lobotomy Kit 1554 | -10/Exiles | Entered Mines 1635 | -9/Mines | A weapon hastily lodged in a ceiling crevice suddenly fell to the ground 1701 | -9/Mines | Learned location of Storage (-8) 1769 | -9/Mines | Discovered new exit (range 5) 1926 | -9/Mines | Build established: Scavenger-Mutant 2026 | -9/Mines | Discovered new exit (range 7) 2070 | -9/Mines | Identified exit to Materials 2165 | -9/Mines | Assisted by bots powering up and referring to "LRC-V3" 2327 | -9/Mines | Assimilated S-10 Pest with FLK Orb 2476 | -9/Mines | Core integrity fell below 20% 2537 | -9/Mines | Entered Materials 2537 | -8/Materials | Evolved 4 slots: Propulsion x2, Utility x2 2539 | -8/Materials | Loaded intel: 12 terminal locations 3164 | -8/Materials | Self-destructed Last Messages --------------- Specialist reinforcements to area. K-01 Serf collects debris. Sneak attack on K-01 Serf. Destroyed Wheel. Destroyed Lgt. Ion Engine. K-01 Serf system corrupted by crushing effect. K-01 Serf knocked back. K-01 Serf system terminally corrupted. Wheel fried. K-01 Serf collects debris. Sneak attack on K-01 Serf. Destroyed Lgt. Ion Engine. K-01 Serf system corrupted by crushing effect. K-01 Serf knocked back. System corrupted: Matter fused (-10). System corrupted: Mak. Hammer rejected. Acquired 10 matter. Acquired 11 matter. Imp. Aluminum Leg destroyed. Acquired 9 matter. Map ----- +----------------------------------------------------+ | ?????????????????????????????????????????????????? | | ?????????????????????????????????????????????????? | | ?????????????????????????????????????????????????? | | ?????????????????????????????????????????????????? | | ?????????????????????????????????????????????????? | | ?????????????????????????????????????????????????? | | ?????????????????????????????????????????????????? | | ?????????????????????????????????????????????????? | | ?????????????????????????????????????????????????? | | ?????????????????????????????????????????????????? | | ?????????????????????????????????????????????????? | | ?????????????????????????????????????????????????? | | ?T?????????T????????????????????????????########## | | ????????????????????????????????????????# | | ????????????????????????????????????????# / | | ????????????????????????????????????????# / | | ????????????????+???????????????????????# [== | | ????????????????????????????????????????# | | ????????????????####+???????????????????# | | ????????????????? ??????????????????# | | ?????????????????? ??????????????????# | | ??????????????????? ?########????????########## | | ????????????????????# ?#! ! #?????????######### | | ????????????????????# # ###???????# | | ????????????????????# #% #???????# | | ????????????????????# a x@ #?????# ^ """ | | ????????????????????# #% ] #????# """ | | ????????????????????# !] x #???# ^""" | | ????????????????????# ?## ##???# ^ ^ | | ????????????????????# ??? #????# | | ????????????????????# ????# ###????# | | ????????????????????# ?????# ########## | | ????????????????????#???????# t | | ????????????????????????????# ################## | | ????????????????????????????# #???????????# !# | | ????????????????????????????# #???????????# # | | ????????????????????????????# #???????????# # | | ??????????????????????Y????? ???????????# # | | ??????????????????????H????? ???????????# + | | ???????????????????????????? ???????????# # | | ????????????????????????????###???????????# # | | ??????????????????????????????????????????# + | | ???????????????????+??????????????????????# ### | | ??????????????????????????????????????????######?? | | ?????????????????????????????????????????????????? | | ?????????????????????????????????????????????????? | | ???????????????????????????????????? #### | | ???????????????????????????????T???? | | ???????????????????????????????????? #### | | ?????????????????????????????????????????????????? | +----------------------------------------------------+ Best States ------------- Heat Dissipation 45 Energy Generation 12 Energy Capacity 265 Matter Stores 300 Matter Capacity 300 Sight Range 16 Robot Scan Range 14 Terrain Scan Density 85 Evasion (%) 55 Trap Extractor Capacity 4 Item Schematics ----------------- None Robot Schematics ------------------ None Fabricated ------------ Nothing Repaired ---------- Nothing Alien Tech Used ----------------- None Achievements -------------- None Challenges ------------ None Game ------ Seed BombardmentMiniDrillbomb Manual? 0 Play Time 00:57:07 Cumulative 7.7 hours Start 2025.07.30 @ 03:23:33 End 2025.08.05 @ 18:05:34 Sessions 3 Manual Loads 0 Difficulty Rogue Special Mode None Game No. 7 Rogue 2 Adventurer 5 Explorer 0 Win Type - Total 0 Types 0/0/0/0/0/0/0/0/0/0 Lore% 6 Gallery% 10 Achievement% 12 Wizard Run 0 Options --------- Layout 1 ASCII 0 Keyboard 0 Movement Numpad Keybinds 0 Fullscreen 1 Font 16/SmallcapsGlow Map View 55x38 Zoom Use 0% Tactical HUD 0 Map Filters NONE Filters NONE Steam 1 RUN: 7db72d01-41c1-44ac-bb01-d937633e64e4